{"text_format":"1","workbook":"xlsx","n_sheets":3,"sheets":["PARAMETRES","F_AAAAMMJJ","Mode d'emploi"],"not_rendered":{"charts":0,"images":0,"macros":1,"external_links":0,"defined_names":7,"comments":0,"pivot_tables":0},"unopened":[],"bounds":{"document_bytes":16777216,"sheet_cells":100000,"rows_first":2000,"rows_last":500,"rows_between":2000,"halvings":0,"cell_chars":16384,"cell_head_chars":4096},"cells_cut":0,"cells_raw":0,"read":"whole","date_system":"1900"}

{"sheet":"PARAMETRES","index":0,"n_rows":14,"n_cols":10,"rows_kept":14,"cut":false,"hidden":false,"merged":[]}
["SIGNALETIQUE ARTICLES",null,null,null,null,"Taux TVA",null,"Numéro Facture"]
["CODE","DESIGNATIONS","PRIX UN.","TAUX TVA",null,0,null,"Année","Mois",0]
[null,null,null,null,null,0.06,null,2018,1,20180102]
[1,"ARTICLE 1",3,0.18,null,0.12,null,null,2,20180200]
[2,"ARTICLE 2",5,0.21,null,0.21,null,null,3,20180300]
[3,"ARTICLE 3",7,0.25,null,0.25,null,null,4,20180400]
[4,"ARTICLE 4",10.5,0.06,null,null,null,null,5,20180500]
[null,null,null,null,null,null,null,null,6,20180600]
[null,null,null,null,null,null,null,null,7,20180700]
[null,null,null,null,null,null,null,null,8,20180800]
[null,null,null,null,null,null,null,null,9,20180900]
[null,null,null,null,null,null,null,null,10,20181000]
[null,null,null,null,null,null,null,null,11,20181100]
[null,null,null,null,null,null,null,null,12,20181200]

{"sheet":"F_AAAAMMJJ","index":1,"n_rows":55,"n_cols":9,"rows_kept":55,"cut":false,"hidden":false,"merged":[[45,1,45,4],[39,1,39,4],[40,1,40,4],[41,1,41,4],[42,1,42,4],[43,1,43,4],[35,1,35,4],[36,1,36,4],[37,1,37,4],[38,1,38,4],[44,1,44,4],[30,1,30,4],[31,1,31,4],[32,1,32,4],[33,1,33,4],[34,1,34,4],[0,0,0,2],[1,0,1,3],[54,7,54,8],[16,2,16,3],[15,2,15,3],[19,1,19,4],[20,1,20,4],[21,1,21,4],[22,1,22,4],[23,1,23,4],[24,1,24,4],[25,1,25,4],[26,1,26,4],[27,1,27,4],[28,1,28,4],[29,1,29,4]]}
["NOM SOCIETE"]
["Siège      :  ADRESSE\nBureau :  Adresse\nT.V.A .    :  Numéro TVA\n\n"]
["TEL.    :    ","Numéro téléphone",null,null,"N° TVA","COND. DE PAIEMENT",null,"DATE FACT.","ECHEANCE"]
["GSM    : ","Numéro GSM",null,null,"N.TVA client",30,null,"2018-01-01",{"$f":"H4+IF(F4=\"COMPTANT\",0,F4)","v":"2018-01-31"}]
["email","Adresse mail"]
[]
[]
["Adresse","Facturation",null,null,null,"Courrier"]
["Nom Client (Raison sociale)",null,null,null,null,"Nom Client (Agence)"]
["Adresse Client",null,null,null,null,"Adresse Client (Agence)"]
["Localité Client",null,null,null,null,"Localité Client (Agence"]
[]
[]
[]
[]
[null,"N° CLIENT","FACTURE"]
[null,7,20180100]
[null,"REF.A RAPPELER LORS DU PAIEMENT"]
[]
["Code","D E S I G N A T I O N S",null,null,null,"QTE","P.UN.","MONTANT","TAUX"]
[null,{"$f":"IFERROR(VLOOKUP(C_FACTURE,CODE,2,FALSE),\"\")","v":""},null,null,null,null,{"$f":"IFERROR(VLOOKUP(C_FACTURE,CODE,3,FALSE),\"\")","v":""},{"$f":"IF(G21=\"\",\"\",F21*G21)","v":""},{"$f":"IFERROR(VLOOKUP(C_FACTURE,CODE,4,FALSE),\"\")","v":""}]
[null,"",null,null,null,null,"",{"$f":"IF(G22=\"\",\"\",F22*G22)","v":""},""]
[null,"",null,null,null,null,"","",""]
[null,"",null,null,null,null,"","",""]
[null,"",null,null,null,null,"","",""]
[null,"",null,null,null,null,"",{"$f":"IF(G26=\"\",\"\",F26*G26)","v":""},""]
[null,"",null,null,null,null,"","",""]
[null,"",null,null,null,null,"","",""]
[null,"",null,null,null,null,"","",""]
[null,"",null,null,null,null,"","",""]
[null,"",null,null,null,null,"","",""]
[null,"",null,null,null,null,"","",""]
[null,"",null,null,null,null,"","",""]
[null,"",null,null,null,null,"","",""]
[null,"",null,null,null,null,"","",""]
[null,"",null,null,null,null,"","",""]
[null,"",null,null,null,null,"","",""]
[null,"",null,null,null,null,"","",""]
[null,"",null,null,null,null,"","",""]
[null,"",null,null,null,null,"","",""]
[null,"",null,null,null,null,"","",""]
[null,"",null,null,null,null,"","",""]
[null,"",null,null,null,null,"","",""]
[null,"",null,null,null,null,"","",""]
[null,"",null,null,null,null,"","",""]
[null,"",null,null,null,null,"","",""]
[]
[null,"B.IMPOS.","TAUX","T.V.A."]
[null,{"$f":"SUMIF(TAUX,C49,MONTANT)","v":0},0,{"$f":"ROUND(B49*C49,2)","v":0}]
[null,{"$f":"SUMIF(TAUX,C50,MONTANT)","v":0},0.06,{"$f":"ROUND(B50*C50,2)","v":0}]
[null,{"$f":"SUMIF(TAUX,C51,MONTANT)","v":0},0.12,0]
[null,{"$f":"SUMIF(TAUX,C52,MONTANT)","v":0},0.21,0]
[null,{"$f":"SUMIF(TAUX,C53,MONTANT)","v":0},0.25,0]
[null,null,null,null,null,null,null,"A  PAYER"]
[null,{"$f":"SUM(B49:B54)","v":0},null,{"$f":"SUM(D49:D54)","v":0}," CBC : Numéro Banque",null,null,{"$f":"+B55+D55","v":0}]

{"sheet":"Mode d'emploi","index":2,"n_rows":9,"n_cols":2,"rows_kept":9,"cut":false,"hidden":false,"merged":[]}
["Mode d'emploi"]
[0,"Objectifs :\nPermettre de réaliser une petite facturation offrant :\n- l'enregistrement d'un signalétique articles précisant \n   - un code article\n   - une désignation\n   - un prix unitaire\n   - la TVA à appliquer\n- la création des factures à partir d'un modèle.  Ces factures seront numérotées automatiquement dans une des 12 séries de numéros (une par mois) "]
[1,"Adapter l'onglet modèle de facture (F_AAAAMMJJ) en y précisant :\n- le nom et les coordonnées de la société facturante en A1:B5\n- les taux de TVA utilisés dans le pays (C49:C54 - Il y a 5 taux proposés - mettre à blanc les taux inutiles"]
[{"$f":"A3+1","v":2},"Création du signalétique articles dans l'onglet PARAMETRES en A4:D53 (laisser la ligne 3 vide)"]
[{"$f":"A4+1","v":3},"MAJ de la table des taux de TVA en fonction du pays dans l'onglet PARAMETRES en F2:F6"]
[4]
[5,"En début d'année : \n- sauver le fichier utilisé sous un autre nom par exemple F_20190000 pour l'année 2019 (ainsi on garde le fichier en cours pour les archives)\n- Préciser l'année à traiter dans l'onglet PARAMETRES en H3 \n- lancer la macro de renumérotation en cliquant sur le bouton \n\"RENUMEROTATION\".  La numérotation sera établie pour l'année encodée en H3\n- supprimer tous les onglets factures créées durant l'année qui se termine.  Pour cela cliquer sur tous les onglets factures en maintenant la touche CTRL enfoncée (SAUF LE MODELE F_AAAAMMJJ).  Si nécessaire il y aurait moyen de faire une petite macro qui éliminerait les onglets factures)"]
[6,"Facturation :\n- cliquer sur le bouton CREATION NOUVELLE FACTURE. \n- préciser la date de la facture lorsque Excel le demande\n- la facture se crée avec la date précisée et le numéro suivant du mois de la facture.\nIl faut maintenant la complétée :\n- mettre le délai de paiement en mois ou 0 pour cash) en F4\n- compléter les noms et adresses du client (il y a moyen de facturer à un groupe et d'envoyer le courrier à une adresse différente (pour une agence par exemple)\n- préciser les codes des articles à l'aide de la liste déroulante (en A21:A46)\n- préciser la quantité en F21:F46\nC'est terminé : vous pouvez imprimer la facture"]
[7,"Si on supprime manuellement un onglet (facture non désirée par exemple), ne pas oublier de réadapter manuellement la numérotation dans l'onglet PARAMETRES qui doit toujours contenir le dernier numéro utilisé."]